fUST/lending_fUST_20250731
["ID","MTS","AMOUNT","RATE_DAILY","PERIOD"]
[376209582,1753894244718,-460.0,0.00020544,2]
[376209583,1753894244727,-460.0,0.00020544,2]
[376209585,1753894244736,-609.28,0.00020544,2]
[376209587,1753894244746,-460.0,0.00020544,2]
[376209589,1753894244755,-460.0,0.00020544,2]
[376209592,1753894244765,-698.54,0.00020544,2]
[376209593,1753894244774,-460.0,0.00020544,2]
[376209595,1753894244784,-446.66479869,0.00020544,2]
[376209597,1753894244793,-460.0,0.00020544,2]
[376209599,1753894244802,-468.28582491,0.00020544,2]
[376209601,1753894244812,-460.0,0.00020544,2]
[376209603,1753894244824,-460.0,0.00020544,2]
[376209605,1753894244833,-460.0,0.00020544,2]
[376209607,1753894244842,-460.0,0.00020545,2]
[376209609,1753894244852,-460.0,0.00020545,2]
[376209611,1753894244861,-486.92105167,0.00020545,2]
[376209613,1753894244871,-460.0,0.00020545,2]
[376209615,1753894244880,-460.0,0.00020545,2]
[376209617,1753894244889,-460.0,0.00020545,2]
[376209619,1753894244898,-460.0,0.00020545,2]
[376209621,1753894244908,-460.0,0.00020545,2]
[376209623,1753894244917,-566.46456251,0.00020545,2]
[376209625,1753894244926,-460.0,0.00020545,2]
[376209627,1753894244936,-460.0,0.00020545,2]
[376209629,1753894244945,-460.0,0.00020545,2]
[376209631,1753894244954,-460.0,0.00020545,2]
[376209633,1753894244964,-460.0,0.00020545,2]
[376209635,1753894244974,-460.0,0.00020545,2]
[376209637,1753894244984,-460.0,0.00020545,2]
[376209639,1753894244993,-460.0,0.00020545,2]
[376209641,1753894245004,-460.0,0.00020545,2]
[376209644,1753894245013,-460.0,0.00020545,2]
[376209645,1753894245023,-460.0,0.00020545,2]
[376209647,1753894245032,-460.0,0.00020545,2]
[376209650,1753894245042,-485.06273296,0.00020545,2]
[376209652,1753894245056,-460.0,0.00020545,2]
[376209654,1753894245065,-460.0,0.00020545,2]
[376209656,1753894245079,-460.0,0.00020545,2]
[376209658,1753894245089,-460.0,0.00020545,2]
[376209660,1753894245099,-460.0,0.00020545,2]
[376209662,1753894245109,-297.73165524,0.00020545,2]
[376209664,1753894245118,-460.0,0.00020545,2]
[376209666,1753894245131,-460.0,0.00020545,2]
[376209668,1753894245141,-460.0,0.00020545,2]
[376209670,1753894245150,-460.0,0.00020545,2]
[376209672,1753894245159,-460.0,0.00020545,2]
[376209674,1753894245169,-460.0,0.00020545,2]
[376209676,1753894245178,-460.0,0.00020545,2]
[376209678,1753894245187,-460.0,0.00020545,2]
[376209680,1753894245197,-460.0,0.00020545,2]
[376209682,1753894245206,-460.0,0.00020545,2]
[376209684,1753894245215,-460.0,0.00020546,2]
[376209686,1753894245224,-460.0,0.00020546,2]
[376209688,1753894245233,-972.05,0.00020546,2]
[376209690,1753894245243,-460.0,0.00020546,2]
[376209692,1753894245252,-460.0,0.00020546,2]
[376209694,1753894245262,-460.0,0.00020546,2]
[376209696,1753894245271,-1070.61,0.00020546,2]
[376209698,1753894245281,-460.0,0.00020546,2]
[376209700,1753894245290,-460.0,0.00020546,2]
[376209702,1753894245302,-460.0,0.00020546,2]
[376209704,1753894245311,-460.0,0.00020546,2]
[376209706,1753894245322,-460.0,0.00020546,2]
[376209708,1753894245332,-460.0,0.00020546,2]
[376209713,1753894245367,-1155.36,0.00020546,2]
[376209715,1753894245377,-460.0,0.00020547,2]
[376209717,1753894245386,-447.91343147,0.00020547,2]
[376209718,1753894245396,-440.85262255,0.00020547,2]
[376209720,1753894245405,-460.0,0.00020547,2]
[376209722,1753894245414,-460.0,0.00020547,2]
[376209724,1753894245423,-460.0,0.00020547,2]
[376209727,1753894245433,-460.0,0.00020547,2]
[376209729,1753894245442,-460.0,0.00020547,2]
[376209730,1753894245451,-460.0,0.00020547,2]
[376209733,1753894245461,-460.0,0.00020547,2]
[376209734,1753894245470,-187.705374,0.00020547,2]
[376209737,1753894245480,-151.0,0.00020547,2]
[376209738,1753894245490,-584.41,0.00020547,2]
[376209740,1753894245499,-460.0,0.00020547,2]
[376209742,1753894245509,-460.0,0.00020547,2]
[376209744,1753894245518,-151.0,0.00020547,2]
[376209746,1753894245527,-337.15305541,0.00020573,2]
[376209748,1753894245536,-500.0,0.00020573,2]
[376209750,1753894245545,-348.11758506,0.00020573,2]
[376209753,1753894245560,-151.88241494,0.00020573,2]
[376209755,1753894245571,-500.0,0.00020573,2]
[376209757,1753894245580,-500.0,0.00020573,2]
[376209759,1753894245590,-500.0,0.00020573,2]
[376209761,1753894245599,-501.72606197,0.00020573,2]
[376209763,1753894245609,-500.0,0.00020573,2]
[376209765,1753894245618,-422.97070679,0.00020573,2]
[376209767,1753894245628,-465.49789933,0.00020587,2]
[376209769,1753894245638,-460.0,0.00020587,2]
[376209771,1753894245647,-151.0,0.00020587,2]
[376209773,1753894245657,-151.0,0.00020587,2]
[376209775,1753894245666,-201.29118701,0.00020588,2]
[376209777,1753894245675,-151.0,0.00020588,2]
[376209779,1753894245685,-460.0,0.00020588,2]
[376209781,1753894245693,-460.0,0.00020588,2]
[376209783,1753894245703,-460.0,0.00020588,2]
[376209785,1753894245712,-460.0,0.00020588,2]
[376209787,1753894245721,-151.0,0.00020588,2]
[376209789,1753894245731,-460.0,0.00020588,2]
[376209790,1753894245740,-164.339254,0.00020588,2]
[376209792,1753894245750,-164.339254,0.00020588,2]
[376209794,1753894245759,-460.0,0.00020588,2]
[376209796,1753894245768,-460.0,0.00020588,2]
[376209798,1753894245777,-460.0,0.00020588,2]
[376209800,1753894245786,-460.0,0.00020588,2]
[376209802,1753894245795,-460.0,0.00020588,2]
[376209804,1753894245804,-231.82,0.00020588,2]
[376209806,1753894245814,-460.0,0.00020588,2]
[376209808,1753894245824,-460.0,0.00020588,2]
[376209810,1753894245833,-460.0,0.00020588,2]
[376209812,1753894245842,-460.0,0.00020588,2]
[376209814,1753894245851,-460.0,0.00020588,2]
[376209816,1753894245860,-460.0,0.00020588,2]
[376209818,1753894245869,-460.0,0.00020588,2]
[376209820,1753894245878,-460.0,0.00020588,2]
[376209822,1753894245887,-460.0,0.00020588,2]
[376209824,1753894245897,-377.21921361,0.00020588,2]
[376209827,1753894245906,-460.0,0.00020588,2]
[376209830,1753894245915,-460.0,0.00020588,2]
[376209832,1753894245924,-460.0,0.00020588,2]
[376209834,1753894245933,-460.0,0.00020588,2]
[376209836,1753894245942,-460.0,0.00020588,2]
[376209838,1753894245951,-151.0,0.00020589,2]
[376209840,1753894245960,-151.0,0.00020589,2]
[376209842,1753894245969,-460.0,0.00020589,2]
[376209844,1753894245978,-460.0,0.00020589,2]
[376209846,1753894245987,-460.0,0.00020589,2]
[376209848,1753894245996,-460.0,0.00020589,2]
[376209850,1753894246005,-2830.78,0.00020589,2]
[376209852,1753894246015,-722.62,0.00020589,2]
[376209854,1753894246024,-460.0,0.00020589,2]
[376209856,1753894246033,-151.0,0.0002059,2]
[376209858,1753894246042,-151.0,0.0002059,2]
[376209860,1753894246056,-151.0,0.0002059,2]
[376209861,1753894246065,-151.92336044,0.0002059,2]
[376209862,1753894246074,-151.0,0.0002059,2]
[376209863,1753894246083,-151.0,0.0002059,2]
[376209864,1753894246094,-151.0,0.0002059,2]
[376209865,1753894246103,-166.95873073,0.0002059,2]
[376209866,1753894246113,-460.0,0.0002059,2]
[376209868,1753894246122,-910.85,0.0002059,2]
[376209870,1753894246132,-151.0,0.0002059,2]
[376209872,1753894246142,-151.0,0.0002059,2]
[376209874,1753894246151,-151.0,0.0002059,2]
[376209876,1753894246160,-151.0,0.0002059,2]
[376209878,1753894246170,-460.0,0.0002059,2]
[376209880,1753894246179,-460.0,0.0002059,2]
[376209882,1753894246189,-502.0,0.0002059,2]
[376209884,1753894246198,-151.0,0.0002059,2]
[376209886,1753894246207,-151.0,0.0002059,2]
[376209888,1753894246216,-151.0,0.0002059,2]
[376209890,1753894246227,-151.0,0.0002059,2]
[376209892,1753894246236,-757.04,0.0002059,2]
[376209894,1753894246245,-677.69,0.0002059,2]
[376209896,1753894246254,-151.0,0.0002059,2]
[376209898,1753894246264,-151.0,0.0002059,2]
[376209900,1753894246274,-151.0,0.0002059,2]
[376209902,1753894246283,-460.0,0.0002059,2]
[376209904,1753894246292,-151.0,0.0002059,2]
[376209906,1753894246302,-151.0,0.0002059,2]
[376209908,1753894246311,-151.0,0.00020591,2]
[376209910,1753894246322,-151.0,0.00020594,2]
[376209912,1753894246331,-500.0,0.00020594,2]
[376209914,1753894246340,-500.0,0.00020594,2]
[376209916,1753894246350,-500.0,0.00020594,2]
[376209918,1753894246359,-849.51679295,0.00020678,2]
[376209920,1753894246369,-330.21693908,0.00020679,2]
[376209922,1753894246378,-382.39507642,0.00020694,2]
[376209925,1753894246394,-117.60492358,0.00020694,2]
[376209927,1753894246403,-500.0,0.00020694,2]
[376209929,1753894246414,-500.0,0.00020694,2]
[376209931,1753894246423,-500.0,0.00020794,2]
[376209933,1753894246433,-500.0,0.00020794,2]
[376209935,1753894246443,-500.0,0.00020794,2]
[376209937,1753894246452,-460.0,0.00020818,2]
[376209939,1753894246462,-460.0,0.00020818,2]
[376209941,1753894246472,-1425.96,0.00020818,2]
[376209943,1753894246481,-460.0,0.00020818,2]
[376209945,1753894246491,-460.0,0.00020818,2]
[376209947,1753894246500,-1158.82,0.00020818,2]
[376209949,1753894246510,-460.0,0.00020818,2]
[376209951,1753894246519,-319.14199469,0.00020818,2]
[376209965,1753894246645,-500.0,0.00020594,2]
[376209967,1753894246655,-500.0,0.00020594,2]
[376209969,1753894246665,-500.0,0.00020694,2]
[376209971,1753894246674,-599.8316818,0.00020794,2]
[376209974,1753894246686,-19.2998182,0.00020794,2]
[376209976,1753894246695,-2163.39800531,0.00020818,2]
[376209978,1753894246705,-460.0,0.00020818,2]
[376209980,1753894246714,-460.0,0.00020818,2]
[376209982,1753894246723,-460.0,0.00020818,2]
[376209984,1753894246732,-609.28,0.00020818,2]
[376209986,1753894246742,-460.0,0.00020818,2]
[376209988,1753894246751,-460.0,0.00020818,2]
[376209990,1753894246760,-698.54,0.00020818,2]
[376209992,1753894246770,-460.0,0.00020818,2]
[376209994,1753894246779,-460.0,0.00020818,2]
[376209996,1753894246789,-460.0,0.00020818,2]
[376209998,1753894246799,-460.0,0.00020819,2]
[376210000,1753894246808,-460.0,0.00020819,2]
[376210002,1753894246817,-460.0,0.00020819,2]
[376210004,1753894246828,-460.0,0.00020819,2]
[376210006,1753894246837,-460.0,0.00020819,2]
[376210008,1753894246847,-460.0,0.00020819,2]
[376210010,1753894246856,-460.0,0.00020819,2]
[376210012,1753894246865,-460.0,0.00020819,2]
[376210014,1753894246875,-460.0,0.00020819,2]
[376210016,1753894246884,-151.0,0.00020819,2]
[376210018,1753894246893,-397.99319594,0.00020819,2]
[376210020,1753894246902,-460.0,0.00020819,2]
[376210022,1753894246912,-460.0,0.00020819,2]
[376210024,1753894246921,-460.0,0.00020819,2]
[376210026,1753894246931,-460.0,0.00020819,2]
[376210028,1753894246940,-460.0,0.00020819,2]
[376210030,1753894246950,-460.0,0.00020819,2]
[376210032,1753894246959,-460.0,0.00020819,2]
[376210034,1753894246969,-460.0,0.00020819,2]
[376210036,1753894246978,-460.0,0.00020819,2]
[376210038,1753894246988,-460.0,0.00020819,2]
[376210040,1753894246997,-460.0,0.00020819,2]
[376210042,1753894247006,-460.0,0.00020819,2]
[376210044,1753894247015,-460.0,0.00020819,2]
[376210046,1753894247025,-460.0,0.00020819,2]
[376210048,1753894247035,-460.0,0.00020819,2]
[376210050,1753894247045,-460.0,0.00020819,2]
[376210052,1753894247058,-460.0,0.00020819,2]
[376210054,1753894247067,-460.0,0.00020819,2]
[376210056,1753894247078,-460.0,0.0002082,2]
[376210059,1753894247087,-460.0,0.0002082,2]
[376210061,1753894247098,-972.05,0.0002082,2]
[376210063,1753894247109,-151.0,0.0002082,2]
[376210065,1753894247121,-460.0,0.0002082,2]
[376210067,1753894247131,-460.0,0.0002082,2]
[376210069,1753894247140,-460.0,0.0002082,2]
[376210071,1753894247149,-188.3055646,0.0002082,2]
[376210073,1753894247165,-882.3044354,0.0002082,2]
[376210075,1753894247174,-460.0,0.0002082,2]
[376210077,1753894247183,-460.0,0.0002082,2]
[376210079,1753894247192,-460.0,0.0002082,2]
[376210081,1753894247201,-460.0,0.0002082,2]
[376210083,1753894247211,-460.0,0.0002082,2]
[376210085,1753894247220,-1155.36,0.0002082,2]
[376210088,1753894247229,-525.73399561,0.00020821,2]
[376210089,1753894247240,-460.0,0.00020821,2]
[376210092,1753894247249,-460.0,0.00020821,2]
[376210094,1753894247259,-460.0,0.00020821,2]
[376210096,1753894247268,-164.339254,0.00020821,2]
[376210098,1753894247277,-164.339254,0.00020821,2]
[376210100,1753894247286,-221.82967535,0.00020821,2]
[376210101,1753894247295,-460.0,0.00020821,2]
[376210103,1753894247305,-460.0,0.00020821,2]
[376210106,1753894247315,-584.41,0.00020821,2]
[376210108,1753894247325,-460.0,0.00020821,2]
[376210110,1753894247335,-353.83363322,0.00020834,2]
[376210112,1753894247345,-215.312756,0.00020835,2]
[376210114,1753894247355,-460.0,0.00020861,2]
[376210116,1753894247365,-460.0,0.00020862,2]
[376210118,1753894247375,-460.0,0.00020862,2]
[376210120,1753894247385,-460.0,0.00020862,2]
[376210122,1753894247394,-460.0,0.00020862,2]
[376210124,1753894247403,-369.49573422,0.00020862,2]
[376210126,1753894247413,-2.75993016,0.00020862,2]
[376210128,1753894247425,-457.24006984,0.00020862,2]
[376210130,1753894247436,-460.0,0.00020862,2]
[376210132,1753894247445,-460.0,0.00020862,2]
[376210135,1753894247455,-460.0,0.00020862,2]
[376210137,1753894247465,-460.0,0.00020862,2]
[376210139,1753894247474,-460.0,0.00020862,2]
[376210141,1753894247484,-460.0,0.00020862,2]
[376210143,1753894247494,-460.0,0.00020862,2]
[376210145,1753894247504,-181.52478157,0.00020862,2]
[376210147,1753894247513,-460.0,0.00020862,2]
[376210149,1753894247522,-460.0,0.00020862,2]
[376210151,1753894247532,-460.0,0.00020862,2]
[376210153,1753894247541,-460.0,0.00020862,2]
[376210155,1753894247550,-460.0,0.00020862,2]
[376210157,1753894247559,-460.0,0.00020862,2]
[376210159,1753894247569,-460.0,0.00020862,2]
[376210161,1753894247579,-460.0,0.00020862,2]
[376210163,1753894247589,-151.0,0.00020863,2]
[376210165,1753894247599,-258.85028386,0.00020863,2]
[376210167,1753894247608,-460.0,0.00020863,2]
[376210169,1753894247618,-460.0,0.00020863,2]
[376210171,1753894247627,-2830.78,0.00020863,2]
[376210173,1753894247637,-151.0,0.00020863,2]
[376210175,1753894247647,-722.62,0.00020863,2]
[376210178,1753894247656,-151.0,0.00020864,2]
[376210180,1753894247666,-151.0,0.00020864,2]
[376210182,1753894247676,-151.0,0.00020864,2]
[376210184,1753894247685,-502.0,0.00020864,2]
[376210186,1753894247695,-151.0,0.00020864,2]
[376210188,1753894247705,-213.84274437,0.00020864,2]
[376210190,1753894247714,-151.0,0.00020864,2]
[376210192,1753894247724,-151.0,0.00020864,2]
[376210194,1753894247733,-164.339254,0.00020864,2]
[376210196,1753894247743,-164.339254,0.00020864,2]
[376210198,1753894247752,-460.0,0.00020864,2]
[376210200,1753894247761,-910.85,0.00020864,2]
[376210202,1753894247771,-460.0,0.00020864,2]
[376210204,1753894247781,-460.0,0.00020864,2]
[376210206,1753894247791,-757.04,0.00020864,2]
[376210208,1753894247801,-677.69,0.00020864,2]
[376210210,1753894247811,-460.0,0.00020864,2]
[376210212,1753894247820,-212.373478,0.00020865,2]
[376210214,1753894247831,-151.0,0.00020865,2]
[376210216,1753894247841,-500.0,0.00020894,2]
[376210218,1753894247851,-500.0,0.00020894,2]
[376210220,1753894247860,-500.0,0.00020894,2]
[376210222,1753894247870,-257.77638238,0.000209,4]
[376210224,1753894247879,-161.552635,0.00020921,2]
[376210226,1753894247889,-161.552635,0.00020921,2]
[376210228,1753894247898,-151.0,0.00020921,2]
[376210230,1753894247908,-500.0,0.00020994,2]
[376210232,1753894247918,-500.0,0.00020994,2]
[376210234,1753894247927,-313.045,0.00020994,2]
[376210237,1753894247937,-160.0,0.00021011,2]
[376210250,1753894248059,-1500.0,0.00021068,2]
[376210253,1753894248069,-471.22823735,0.00021092,2]
[376210255,1753894248080,-1425.96,0.00021092,2]
[376210256,1753894248091,-460.0,0.00021092,2]
[376210258,1753894248100,-1158.82,0.00021092,2]
[376210260,1753894248110,-460.0,0.00021092,2]
[376210262,1753894248120,-2482.54,0.00021092,2]
[376210265,1753894248131,-460.0,0.00021092,2]
[376210267,1753894248142,-540.54786066,0.00021092,2]
[376210269,1753894248153,-609.28,0.00021092,2]
[376210271,1753894248163,-460.0,0.00021092,2]
[376210273,1753894248175,-460.0,0.00021092,2]
[376210275,1753894248186,-698.54,0.00021092,2]
[376210277,1753894248196,-460.0,0.00021092,2]
[376210279,1753894248205,-460.0,0.00021092,2]
[376210281,1753894248215,-460.0,0.00021092,2]
[376210283,1753894248226,-460.0,0.00021093,2]
[376210285,1753894248235,-460.0,0.00021093,2]
[376210287,1753894248245,-460.0,0.00021093,2]
[376210289,1753894248253,-604.81486163,0.00021093,2]
[376210291,1753894248263,-460.0,0.00021093,2]
[376210293,1753894248272,-460.0,0.00021093,2]
[376210295,1753894248281,-460.0,0.00021093,2]
[376210297,1753894248291,-460.0,0.00021093,2]
[376210299,1753894248300,-460.0,0.00021093,2]
[376210301,1753894248309,-460.0,0.00021093,2]
[376210303,1753894248319,-460.0,0.00021093,2]
[376210305,1753894248328,-460.0,0.00021093,2]
[376210307,1753894248338,-460.0,0.00021093,2]
[376210309,1753894248347,-460.0,0.00021093,2]
[376210311,1753894248356,-460.0,0.00021093,2]
[376210313,1753894248367,-460.0,0.00021093,2]
[376210315,1753894248376,-460.0,0.00021093,2]
[376210317,1753894248385,-460.0,0.00021093,2]
[376210319,1753894248394,-460.0,0.00021093,2]
[376210321,1753894248403,-460.0,0.00021093,2]
[376210323,1753894248415,-460.0,0.00021093,2]
[376210325,1753894248424,-460.0,0.00021093,2]
[376210327,1753894248433,-460.0,0.00021093,2]
[376210329,1753894248442,-460.0,0.00021093,2]
[376210331,1753894248451,-460.0,0.00021093,2]
[376210333,1753894248461,-460.0,0.00021093,2]
[376210335,1753894248471,-460.0,0.00021094,2]
[376210337,1753894248480,-460.0,0.00021094,2]
[376210339,1753894248489,-972.05,0.00021094,2]
[376210341,1753894248498,-460.0,0.00021094,2]
[376210343,1753894248507,-460.0,0.00021094,2]
[376210346,1753894248516,-1070.61,0.00021094,2]
[376210347,1753894248525,-460.0,0.00021094,2]
[376210350,1753894248536,-460.0,0.00021094,2]
[376210352,1753894248545,-500.0,0.00021094,2]
[376210353,1753894248554,-460.0,0.00021094,2]
[376210355,1753894248563,-500.0,0.00021094,2]
[376210357,1753894248574,-1155.36,0.00021094,2]
[376210360,1753894248584,-460.0,0.00021095,2]
[376210362,1753894248593,-460.0,0.00021095,2]
[376210364,1753894248602,-584.41,0.00021095,2]
[376210366,1753894248612,-460.0,0.00021095,2]
[376210368,1753894248621,-257.77638217,0.00021107,4]
[376210370,1753894248630,-278.76246521,0.0002112,2]
[376210372,1753894248640,-500.0,0.00021121,2]
[376210374,1753894248649,-626.91030039,0.00021121,2]
[376210376,1753894248658,-1000.0,0.00021121,2]
[376210378,1753894248668,-238.18277394,0.00021121,2]
[376210380,1753894248678,-460.0,0.00021136,2]
[376210382,1753894248687,-460.0,0.00021136,2]
[376210384,1753894248697,-460.0,0.00021136,2]
[376210386,1753894248706,-460.0,0.00021136,2]
[376210388,1753894248715,-164.339254,0.00021136,2]
[376210390,1753894248725,-164.339254,0.00021136,2]
[376210392,1753894248734,-460.0,0.00021136,2]
[376210393,1753894248744,-460.0,0.00021136,2]
[376210395,1753894248753,-460.0,0.00021136,2]
[376210398,1753894248763,-460.0,0.00021136,2]
[376210400,1753894248772,-460.0,0.00021136,2]
[376210402,1753894248781,-460.0,0.00021136,2]
[376210403,1753894248791,-460.0,0.00021136,2]
[376210405,1753894248800,-460.0,0.00021136,2]
[376210407,1753894248809,-151.0,0.00021136,2]
[376210409,1753894248818,-151.0,0.00021136,2]
[376210412,1753894248828,-460.0,0.00021136,2]
[376210413,1753894248837,-192.66569615,0.00021136,2]
[376210415,1753894248847,-460.0,0.00021136,2]
[376210417,1753894248856,-523.88607506,0.00021136,2]
[376210419,1753894248865,-460.0,0.00021136,2]
[376210422,1753894248875,-151.0,0.00021137,2]
[376210424,1753894248884,-460.0,0.00021137,2]
[376210425,1753894248893,-2830.78,0.00021137,2]
[376210427,1753894248902,-722.62,0.00021137,2]
[376210429,1753894248911,-151.0,0.00021138,2]
[376210431,1753894248920,-151.0,0.00021138,2]
[376210433,1753894248930,-151.0,0.00021138,2]
[376210435,1753894248939,-502.0,0.00021138,2]
[376210437,1753894248948,-151.0,0.00021138,2]
[376210439,1753894248958,-161.552635,0.00021138,2]
[376210441,1753894248967,-161.552635,0.00021138,2]
[376210444,1753894248976,-460.0,0.00021138,2]
[376210446,1753894248986,-910.85,0.00021138,2]
[376210448,1753894248995,-460.0,0.00021138,2]
[376210450,1753894249005,-757.04,0.00021138,2]
[376210452,1753894249014,-677.69,0.00021138,2]
[376210454,1753894249023,-460.0,0.00021138,2]
[376210456,1753894249032,-153.0,0.00021147,2]
[376210458,1753894249041,-153.0,0.00021147,2]
[376210460,1753894249054,-849.51679295,0.00021185,2]
[376210462,1753894249064,-500.0,0.00021194,2]
[376210464,1753894249073,-304.35,0.00021194,2]
[376210466,1753894249082,-500.0,0.00021294,2]
[376210468,1753894249093,-257.77638217,0.00021314,5]
[376210470,1753894249102,-1425.96,0.00021366,2]
[376210472,1753894249112,-460.0,0.00021366,2]
[376210474,1753894249124,-1158.82,0.00021366,2]
[376210476,1753894249134,-460.0,0.00021366,2]
[376210478,1753894249145,-1761.04050877,0.00021366,2]
[376210480,1753894249158,-721.49949123,0.00021366,2]
[376210482,1753894249169,-460.0,0.00021366,2]
[376210484,1753894249178,-563.86895419,0.00021366,2]
[376210495,1753894249261,-500.0,0.00020594,2]
[376210497,1753894249271,-633.39205,0.00020694,2]
[376210499,1753894249280,-293.374435,0.00020694,2]
[376210501,1753894249289,-45.41104581,0.00021366,2]
[376210503,1753894249298,-174.02246915,0.00021366,2]
[376210505,1753894249310,-285.97753085,0.00021366,2]
[376210507,1753894249320,-460.0,0.00021366,2]
[376210508,1753894249330,-698.54,0.00021366,2]
[376210510,1753894249339,-460.0,0.00021366,2]
[376210512,1753894249348,-460.0,0.00021366,2]
[376210514,1753894249358,-460.0,0.00021366,2]
[376210517,1753894249369,-460.0,0.00021367,2]
[376210519,1753894249378,-460.0,0.00021367,2]
[376210521,1753894249388,-460.0,0.00021367,2]
[376210523,1753894249397,-460.0,0.00021367,2]
[376210525,1753894249407,-460.0,0.00021367,2]
[376210527,1753894249416,-460.0,0.00021367,2]
[376210529,1753894249425,-232.95913182,0.00021367,2]
[376210530,1753894249434,-460.0,0.00021367,2]
[376210533,1753894249444,-460.0,0.00021367,2]
[376210535,1753894249453,-460.0,0.00021367,2]
[376210536,1753894249462,-460.0,0.00021367,2]
[376210538,1753894249472,-460.0,0.00021367,2]
[376210540,1753894249482,-460.0,0.00021367,2]
[376210542,1753894249491,-460.0,0.00021367,2]
[376210544,1753894249501,-460.0,0.00021367,2]
[376210547,1753894249510,-562.08176033,0.00021367,2]
[376210549,1753894249520,-460.0,0.00021367,2]
[376210551,1753894249529,-460.0,0.00021367,2]
[376210553,1753894249539,-460.0,0.00021367,2]
[376210555,1753894249548,-460.0,0.00021367,2]
[376210557,1753894249557,-460.0,0.00021368,2]
[376210559,1753894249567,-972.05,0.00021368,2]
[376210561,1753894249576,-460.0,0.00021368,2]
[376210562,1753894249586,-460.0,0.00021368,2]
[376210565,1753894249596,-1070.61,0.00021368,2]
[376210567,1753894249605,-460.0,0.00021368,2]
[376210569,1753894249614,-460.0,0.00021368,2]
[376210570,1753894249623,-1155.36,0.00021368,2]
[376210572,1753894249633,-460.0,0.00021369,2]
[376210574,1753894249642,-164.339254,0.00021369,2]
[376210576,1753894249651,-164.339254,0.00021369,2]
[376210578,1753894249661,-372.24587722,0.00021369,2]
[376210581,1753894249671,-584.41,0.00021369,2]
[376210583,1753894249680,-460.0,0.00021369,2]
[376210584,1753894249689,-500.0,0.00021372,2]
[376210587,1753894249698,-462.13637724,0.00021372,2]
[376210589,1753894249708,-220.74385393,0.00021393,2]
[376210591,1753894249718,-500.0,0.00021394,2]
[376210593,1753894249728,-460.0,0.0002141,2]
[376210595,1753894249737,-460.0,0.0002141,2]
[376210597,1753894249747,-460.0,0.0002141,2]
[376210599,1753894249756,-460.0,0.0002141,2]
[376210600,1753894249765,-460.0,0.0002141,2]
[376210602,1753894249775,-460.0,0.0002141,2]
[376210604,1753894249784,-460.0,0.0002141,2]
[376210606,1753894249793,-157.41819459,0.0002141,2]
[376210608,1753894249802,-152.42890118,0.0002141,2]
[376210610,1753894249812,-460.0,0.0002141,2]
[376210612,1753894249821,-404.32482615,0.0002141,2]
[376210614,1753894249833,-55.67517385,0.0002141,2]
[376210616,1753894249842,-460.0,0.0002141,2]
[376210618,1753894249851,-151.0,0.0002141,2]